[Event "94th FRA-ch Veterans 2019"]
[Site "Chartres"]
[Date "2019.08.24"]
[Round "8.3"]
[White "Vareille, Francois"]
[Black "Ribaud-Chevrey, Philippe"]
[Result "1-0"]
[ECO "D45"]
[WhiteElo "2423"]
[BlackElo "2038"]
[Annotator "NA"]
[PlyCount "111"]
[EventDate "2019.08.17"]
[EventType "swiss"]
[EventCountry "FRA"]
[SourceTitle "playchess.com"]
[Source "ChessBase"]
[SourceQuality "1"]
[TimeControl "40/5400+30:1800+30"]

1. d4 {[%emt 0:00:00]} d5 {[%emt 0:00:06]} 2. c4 {[%emt 0:00:00]} e6 {[%emt 0:00:59]} 3. Nc3 {[%emt 0:00:21]} c6 {[%emt 0:01:20]} 4. e3 {[%emt 0:00:51]} Nf6 {[%emt 0:06:19]} 5. Nf3 {[%emt 0:03:57]} Nbd7 {[%emt 0:06:41]} 6. b3 {[%emt 0:00:29]} Bd6 {[%emt 0:01:10]} 7. Be2 {[%emt 0:01:59]} O-O {[%emt 0:00:15]} 8. O-O {[%emt 0:00:13]} Ne4 {[%emt 0:04:47]} 9. Nxe4 {[%emt 0:09:16]} dxe4 {[%emt 0:06:20]} 10. Nd2 {[%emt 0:00:59]} f5 {[%emt 0:00:10]} 11. Bb2 {[%emt 0:03:56]} Bxh2+ {[%emt 0:22:56]} 12. Kxh2 {[%emt 0:00:38]} Qh4+ {[%emt 0:00:05]} 13. Kg1 {[%emt 0:00:14]} Rf6 {[%emt 0:00:04]} 14. f4 {[%emt 0:02:31]} Rh6 {[%emt 0:00:15]} 15. Nf3 {[%emt 0:00:45]} exf3 {[%emt 0:01:10]} 16. Bxf3 {[%emt 0:05:51]} Nf6 {[%emt 0:00:14]} 17. Qe1 {[%emt 0:00:52]} Qh2+ {[%emt 0:03:59]} 18. Kf2 {[%emt 0:00:12]} Ne4+ {[%emt 0:00:33]} 19. Bxe4 {[%emt 0:00:55]} fxe4 {[%emt 0:00:07]} 20. Rh1 {[%emt 0:04:54]} Qxh1 {[%emt 0:00:10]} 21. Qxh1 {[%emt 0:00:07]} Rxh1 {[%emt 0:00:06]} 22. Rxh1 {[%emt 0:00:07]} g6 {[%emt 0:00:46]} 23. Rh4 {[%emt 0:02:19]} Bd7 {[%emt 0:00:34]} 24. Ba3 {[%emt 0:07:54]} Rd8 {[%emt 0:15:19]} 25. Be7 {[%emt 0:01:16]} Re8 {[%emt 0:00:06]} 26. Bf6 {[%emt 0:00:27]} Rf8 {[%emt 0:01:31]} 27. Be5 {[%emt 0:01:10]} Rf7 {[%emt 0:00:19]} 28. Kg3 {[%emt 0:02:36]} Rf8 {[%emt 0:01:18]} 29. Rh1 {[%emt 0:01:01]} Bc8 {[%emt 0:01:57]} 30. Rc1 {[%emt 0:01:58]} Rd8 {[%emt 0:02:23]} 31. a4 {[%emt 0:06:06]} a6 {[%emt 0:07:59]} 32. a5 {[%emt 0:02:00]} Kf7 {[%emt 0:02:23]} 33. Kf2 {[%emt 0:03:29]} Kg8 {[%emt 0:00:42]} 34. Ke2 {[%emt 0:00:22]} Kf7 {[%emt 0:07:48]} 35. Rh1 {[%emt 0:01:08]} Kg8 {[%emt 0:00:05]} 36. Kd2 {[%emt 0:00:21]} Rd7 {[%emt 0:01:22]} 37. Kc3 {[%emt 0:00:12]} Kf8 {[%emt 0:00:21]} 38. Kb4 {[%emt 0:00:11]} Ke8 {[%emt 0:00:19]} 39. Kc5 {[%emt 0:00:07]} Kd8 {[%emt 0:01:00]} 40. Rh3 {[%emt 0:00:50]} Rf7 {[%emt 0:00:32]} 41. Kd6 {[%emt 0:31:09]} Rd7+ {[%emt 0:30:19]} 42. Kc5 {[%emt 0:00:54]} Rf7 {[%emt 0:00:08]} 43. g4 {[%emt 0:04:46]} Ke7 {[%emt 0:04:38]} 44. Rh2 {[%emt 0:04:47]} Kd8 {[%emt 0:00:41]} 45. Kb6 {[%emt 0:08:57]} Rd7 {[%emt 0:00:00]} 46. f5 {[%emt 0:00:00]} exf5 {[%emt 0:00:00]} 47. gxf5 {[%emt 0:00:00]} gxf5 {[%emt 0:00:00]} 48. Rg2 {[%emt 0:00:00]} Rf7 {[%emt 0:00:00]} 49. Rg8+ {[%emt 0:00:00]} Kd7 {[%emt 0:00:00]} 50. Bc7 {[%emt 0:00:00]} f4 {[%emt 0:00:00]} 51. Bxf4 {[%emt 0:00:00]} Re7 {[%emt 0:00:00]} 52. Bg5 {[%emt 0:00:00]} Re8 {[%emt 0:00:00]} 53. Rxe8 {[%emt 0:00:00]} Kxe8 {[%emt 0:06:14]} 54. Kc7 {[%emt 0:23:53]} Bg4 {[%emt 0:00:00]} 55. Kxb7 {[%emt 0:00:00]} Kd7 {[%emt 0:00:00]} 56. Kxa6 {[%emt 0:01:00]} 1-0

[Event "94th FRA-ch Veterans 2019"]
[Site "Chartres"]
[Date "2019.08.24"]
[Round "8.4"]
[White "Brongers, Henk"]
[Black "Ricter, Jean-Paul"]
[Result "0-1"]
[ECO "B01"]
[WhiteElo "2026"]
[BlackElo "2029"]
[Annotator "NA"]
[PlyCount "82"]
[EventDate "2019.08.17"]
[EventType "swiss"]
[EventCountry "FRA"]
[SourceTitle "playchess.com"]
[Source "ChessBase"]
[SourceQuality "1"]
[TimeControl "40/5400+30:1800+30"]

1. e4 {[%emt 0:00:00]} d5 {[%emt 0:00:03]} 2. exd5 {[%emt 0:00:00]} Nf6 {[%emt 0:00:11]} 3. Bb5+ {[%emt 0:00:29]} Bd7 {[%emt 0:00:24]} 4. Be2 {[%emt 0:00:40]} Nxd5 {[%emt 0:00:41]} 5. d4 {[%emt 0:00:12]} g6 {[%emt 0:02:36]} 6. c4 {[%emt 0:00:42]} Nb6 {[%emt 0:01:39]} 7. Nc3 {[%emt 0:02:53]} Bg7 {[%emt 0:13:38]} 8. Be3 {[%emt 0:02:55]} O-O {[%emt 0:09:55]} 9. Rc1 {[%emt 0:00:54]} Bc8 {[%emt 0:08:34]} 10. Nf3 {[%emt 0:03:36]} Nc6 {[%emt 0:02:30]} 11. h3 {[%emt 0:01:17]} e5 {[%emt 0:01:30]} 12. d5 {[%emt 0:01:12]} Ne7 {[%emt 0:00:20]} 13. O-O {[%emt 0:01:26]} Nf5 {[%emt 0:02:27]} 14. Bc5 {[%emt 0:02:19]} Nd6 {[%emt 0:00:29]} 15. b3 {[%emt 0:06:38]} Re8 {[%emt 0:02:13]} 16. a4 {[%emt 0:02:57]} Nd7 {[%emt 0:01:55]} 17. Bb4 {[%emt 0:04:54]} Nf5 {[%emt 0:01:36]} 18. Ne4 {[%emt 0:04:00]} Nh4 {[%emt 0:06:05]} 19. d6 {[%emt 0:00:42]} c6 {[%emt 0:02:54]} 20. Bd2 {[%emt 0:15:07]} Nxf3+ {[%emt 0:05:07]} 21. Bxf3 {[%emt 0:00:14]} h6 {[%emt 0:01:55]} 22. c5 {[%emt 0:11:46]} f5 {[%emt 0:01:24]} 23. Ng3 {[%emt 0:00:10]} e4 {[%emt 0:00:55]} 24. Be2 {[%emt 0:00:07]} Qh4 {[%emt 0:01:36]} 25. Bc4+ {[%emt 0:01:30]} Kh7 {[%emt 0:01:08]} 26. Bc3 {[%emt 0:02:52]} Bxc3 {[%emt 0:05:47]} 27. Rxc3 {[%emt 0:00:26]} f4 {[%emt 0:01:06]} 28. Ne2 {[%emt 0:08:03]} f3 {[%emt 0:02:27]} 29. gxf3 {[%emt 0:00:46]} Ne5 {[%emt 0:04:46]} 30. fxe4 {[%emt 0:02:48]} Bxh3 {[%emt 0:02:15]} 31. f4 {[%emt 0:03:46]} Bxf1 {[%emt 0:03:16]} 32. fxe5 {[%emt 0:01:13]} Bxe2 {[%emt 0:01:10]} 33. Bxe2 {[%emt 0:01:58]} Rxe5 {[%emt 0:00:48]} 34. Bf3 {[%emt 0:00:28]} Rf8 {[%emt 0:01:40]} 35. Bg2 {[%emt 0:00:33]} Qf2+ {[%emt 0:01:02]} 36. Kh1 {[%emt 0:00:30]} Rh5+ {[%emt 0:02:10]} 37. Rh3 {[%emt 0:00:10]} Rxh3+ {[%emt 0:04:21]} 38. Bxh3 {[%emt 0:00:10]} Qg3 {[%emt 0:00:30]} 39. Bg2 {[%emt 0:00:30]} Rf2 {[%emt 0:00:30]} 40. Qg1 {[%emt 0:00:30]} Re2 {[%emt 0:00:30]} 41. b4 {[%emt 0:30:30]} Qh4+ {[%emt 0:30:30]} 0-1

[Event "94th FRA-ch Veterans 2019"]
[Site "Chartres"]
[Date "2019.08.24"]
[Round "8.5"]
[White "Goldenberg, Richard"]
[Black "Nguyen, Marc-Antoine"]
[Result "1-0"]
[ECO "E40"]
[WhiteElo "2219"]
[BlackElo "1942"]
[Annotator "NA"]
[PlyCount "83"]
[EventDate "2019.08.17"]
[EventType "swiss"]
[EventCountry "FRA"]
[SourceTitle "playchess.com"]
[Source "ChessBase"]
[SourceQuality "1"]
[TimeControl "40/5400+30:1800+30"]

1. d4 {[%emt 0:00:00]} Nf6 {[%emt 0:00:27]} 2. c4 {[%emt 0:02:12]} e6 {[%emt 0:01:50]} 3. Nc3 {[%emt 0:02:46]} Bb4 {[%emt 0:01:42]} 4. e3 {[%emt 0:01:27]} Bxc3+ {[%emt 0:04:49]} 5. bxc3 {[%emt 0:00:02]} d6 {[%emt 0:00:11]} 6. Bd3 {[%emt 0:00:21]} Nbd7 {[%emt 0:01:55]} 7. e4 {[%emt 0:01:23]} b6 {[%emt 0:02:11]} 8. Ne2 {[%emt 0:01:40]} Bb7 {[%emt 0:00:48]} 9. Ng3 {[%emt 0:05:38]} Qe7 {[%emt 0:04:16]} 10. Qe2 {[%emt 0:03:00]} O-O-O {[%emt 0:01:47]} 11. a4 {[%emt 1:17:01]} a5 {[%emt 1:15:34]} 12. f3 {[%emt 0:00:00]} h5 13. h4 {[%emt 0:00:00]} e5 14. Nf5 {[%emt 0:01:30]} Qf8 {[%emt 0:00:00]} 15. Rb1 {[%emt 0:00:00]} Kb8 {[%emt 0:00:00]} 16. Ba3 {[%emt 0:00:00]} g6 {[%emt 0:00:00]} 17. Ne3 {[%emt 0:00:00]} Ka7 18. Bc1 {[%emt 0:00:00]} Qg7 {[%emt 0:00:00]} 19. Nc2 {[%emt 0:02:30]} Ne8 {[%emt 0:00:00]} 20. Be3 {[%emt 0:00:00]} Qf8 21. Na3 {[%emt 0:01:00]} f5 {[%emt 0:00:00]} 22. Bg5 {[%emt 0:00:30]} Rc8 {[%emt 0:00:00]} 23. O-O {[%emt 0:00:00]} f4 24. Rb2 {[%emt 0:00:00]} Ng7 25. Rfb1 {[%emt 0:01:30]} Ne6 {[%emt 0:07:00]} 26. c5 {[%emt 0:00:00]} dxc5 {[%emt 0:00:30]} 27. d5 {[%emt 0:00:00]} Nxg5 {[%emt 0:00:00]} 28. hxg5 {[%emt 0:00:00]} Kb8 {[%emt 0:00:00]} 29. Nc4 {[%emt 0:00:00]} Ka7 {[%emt 0:00:00]} 30. Nxa5 {[%emt 0:00:00]} c4 {[%emt 0:00:00]} 31. Nxc4 {[%emt 0:00:00]} Qc5+ {[%emt 0:00:00]} 32. Kh1 {[%emt 0:00:00]} h4 {[%emt 0:00:00]} 33. a5 {[%emt 0:00:00]} h3 {[%emt 0:00:00]} 34. axb6+ {[%emt 0:00:00]} cxb6 {[%emt 0:00:00]} 35. Nxb6 {[%emt 0:00:00]} hxg2+ {[%emt 0:00:00]} 36. Kxg2 {[%emt 0:00:00]} Nxb6 {[%emt 0:00:00]} 37. Rxb6 {[%emt 0:00:00]} Rc7 {[%emt 0:00:00]} 38. Qa2+ {[%emt 0:00:00]} Kb8 {[%emt 0:00:00]} 39. Ba6 {[%emt 0:00:00]} Rhh7 {[%emt 0:00:00]} 40. d6 {[%emt 0:00:00]} Rcd7 {[%emt 0:00:00]} 41. Bxb7 {[%emt 0:28:06]} Rxb7 {[%emt 0:07:27]} 42. Ra1 {[%emt 0:00:00]} 1-0

[Event "94th FRA-ch Veterans 2019"]
[Site "Chartres"]
[Date "2019.08.24"]
[Round "8.6"]
[White "Canovas, Eric"]
[Black "Lebret, Jean-Michel"]
[Result "1/2-1/2"]
[ECO "D32"]
[WhiteElo "1904"]
[BlackElo "2030"]
[Annotator "NA"]
[PlyCount "140"]
[EventDate "2019.08.17"]
[EventType "swiss"]
[EventCountry "FRA"]
[SourceTitle "playchess.com"]
[Source "ChessBase"]
[SourceQuality "1"]
[TimeControl "40/5400+30:1800+30"]

1. d4 {[%emt 0:00:00]} d5 {[%emt 0:00:00]} 2. c4 {[%emt 0:00:00]} e6 {[%emt 0:00:00]} 3. Nc3 {[%emt 0:00:00]} c5 {[%emt 0:00:16]} 4. cxd5 {[%emt 0:00:20]} exd5 {[%emt 0:04:01]} 5. Nf3 {[%emt 0:00:42]} Nc6 {[%emt 0:00:11]} 6. dxc5 {[%emt 0:01:17]} Nf6 {[%emt 0:04:49]} 7. Bg5 {[%emt 0:02:06]} Be6 {[%emt 0:00:48]} 8. e3 {[%emt 0:08:23]} Bxc5 {[%emt 0:02:02]} 9. Bb5 {[%emt 0:03:07]} O-O {[%emt 0:02:26]} 10. O-O {[%emt 0:00:14]} Be7 {[%emt 0:00:59]} 11. Rc1 {[%emt 0:11:01]} Rc8 {[%emt 0:24:31]} 12. Ne2 {[%emt 0:05:02]} Bg4 {[%emt 0:05:50]} 13. Bxc6 {[%emt 0:10:59]} Bxf3 {[%emt 0:07:03]} 14. Bb5 {[%emt 0:08:17]} Rxc1 {[%emt 0:12:07]} 15. Qxc1 {[%emt 0:00:30]} Bxe2 {[%emt 0:00:44]} 16. Bxe2 {[%emt 0:00:02]} Qa5 {[%emt 0:00:52]} 17. Bh4 {[%emt 0:09:20]} Qxa2 {[%emt 0:06:53]} 18. Qc7 {[%emt 0:01:44]} Qa4 {[%emt 0:01:18]} 19. Bg5 {[%emt 0:10:18]} Qb4 {[%emt 0:00:17]} 20. Bf3 {[%emt 0:07:22]} Bd8 {[%emt 0:00:47]} 21. Qe5 {[%emt 0:02:37]} Ne4 {[%emt 0:03:16]} 22. Bxd8 {[%emt 0:02:43]} Rxd8 {[%emt 0:00:03]} 23. Rd1 {[%emt 0:03:36]} Nf6 {[%emt 0:00:45]} 24. h3 {[%emt 0:01:02]} Re8 {[%emt 0:01:33]} 25. Qf5 {[%emt 0:02:00]} Qxb2 {[%emt 0:01:29]} 26. Rb1 {[%emt 0:01:09]} Qa2 {[%emt 0:01:42]} 27. Rxb7 {[%emt 0:01:21]} a6 {[%emt 0:02:31]} 28. Rc7 {[%emt 0:01:56]} Qa1+ {[%emt 0:02:09]} 29. Kh2 {[%emt 0:00:17]} g6 {[%emt 0:00:12]} 30. Qc2 {[%emt 0:01:50]} Qe5+ {[%emt 0:00:11]} 31. g3 {[%emt 0:00:24]} h5 {[%emt 0:00:54]} 32. Qc3 {[%emt 0:01:59]} Qf5 {[%emt 0:00:49]} 33. Kg2 {[%emt 0:00:39]} Ne4 {[%emt 0:00:37]} 34. Bxe4 {[%emt 0:01:50]} dxe4 {[%emt 0:00:13]} 35. Qc6 {[%emt 0:01:02]} Qe6 {[%emt 0:01:12]} 36. Qxe6 {[%emt 0:01:10]} Rxe6 {[%emt 0:00:12]} 37. g4 {[%emt 0:00:47]} hxg4 {[%emt 0:00:22]} 38. hxg4 {[%emt 0:00:02]} Kg7 {[%emt 0:00:45]} 39. Kg3 {[%emt 0:00:47]} g5 {[%emt 0:01:37]} 40. f3 {[%emt 0:01:18]} exf3 {[%emt 0:00:51]} 41. Kxf3 {[%emt 0:30:03]} Rb6 {[%emt 0:34:29]} 42. Ra7 {[%emt 0:01:10]} Kf6 {[%emt 0:01:00]} 43. Ke4 {[%emt 0:00:20]} Ke6 {[%emt 0:01:58]} 44. Ra8 {[%emt 0:00:26]} f6 {[%emt 0:03:23]} 45. Ra7 {[%emt 0:00:00]} Rb4+ {[%emt 0:00:00]} 46. Kf3 {[%emt 0:00:00]} Ra4 {[%emt 0:00:00]} 47. Ra8 {[%emt 0:00:00]} Ra1 {[%emt 0:00:00]} 48. Ke4 {[%emt 0:00:00]} Ra5 {[%emt 0:00:00]} 49. Re8+ {[%emt 0:00:00]} Kd7 {[%emt 0:00:00]} 50. Rf8 {[%emt 0:00:00]} Re5+ {[%emt 0:00:00]} 51. Kd4 {[%emt 0:00:00]} Re6 {[%emt 0:00:00]} 52. Kd5 {[%emt 0:00:00]} a5 {[%emt 0:00:00]} 53. Rf7+ {[%emt 0:00:00]} Re7 {[%emt 0:00:00]} 54. Rxf6 {[%emt 0:00:00]} Rxe3 {[%emt 0:00:00]} 55. Rf7+ {[%emt 0:00:00]} Kc8 {[%emt 0:00:00]} 56. Kc6 {[%emt 0:00:00]} Re6+ {[%emt 0:00:00]} 57. Kb5 {[%emt 0:00:00]} Re4 {[%emt 0:00:00]} 58. Kxa5 {[%emt 0:00:00]} Rxg4 {[%emt 0:00:00]} 59. Kb5 {[%emt 0:00:00]} Kd8 {[%emt 0:00:00]} 60. Kc5 {[%emt 0:00:00]} Ke8 {[%emt 0:00:00]} 61. Rb7 {[%emt 0:00:00]} Kf8 {[%emt 0:00:00]} 62. Kd5 {[%emt 0:00:00]} Rf4 {[%emt 0:00:00]} 63. Ke5 {[%emt 0:00:00]} Rf1 {[%emt 0:00:16]} 64. Ke4 {[%emt 0:00:00]} g4 {[%emt 0:02:25]} 65. Rb5 {[%emt 0:00:00]} Ra1 {[%emt 0:02:05]} 66. Kf4 {[%emt 0:00:00]} Ra4+ {[%emt 0:00:06]} 67. Kg3 {[%emt 0:00:00]} Kf7 {[%emt 0:00:08]} 68. Rg5 {[%emt 0:00:00]} Kf6 {[%emt 0:00:05]} 69. Rxg4 {[%emt 0:00:11]} Rxg4+ {[%emt 0:00:07]} 70. Kxg4 {[%emt 0:13:37]} Ke5 {[%emt 0:11:41]} 1/2-1/2

[Event "94th FRA-ch Veterans 2019"]
[Site "Chartres"]
[Date "2019.08.25"]
[Round "9.1"]
[White "Dussol, Pierre"]
[Black "Ladisic, Alex-Sacha"]
[Result "1/2-1/2"]
[ECO "C44"]
[WhiteElo "2102"]
[BlackElo "1943"]
[Annotator "ChessBase"]
[PlyCount "84"]
[EventDate "2019.08.17"]
[EventType "swiss"]
[EventCountry "FRA"]
[SourceTitle "playchess.com"]
[Source "ChessBase"]
[SourceQuality "1"]
[TimeControl "40/5400+30:1800+30"]

1. e4 {[%emt 0:00:00]} e5 {[%emt 0:00:25]} 2. Nf3 {[%emt 0:00:00]} Nc6 {[%emt 0:00:06]} 3. c3 {[%emt 0:00:59]} Nf6 {[%emt 0:00:12]} 4. d4 {[%emt 0:00:27]} exd4 {[%emt 0:02:14]} 5. e5 {[%emt 0:01:04]} Nd5 {[%emt 0:08:49]} 6. Qb3 {[%emt 0:01:42]} Nb6 {[%emt 0:00:15]} 7. cxd4 {[%emt 0:00:22]} d5 {[%emt 0:00:40]} 8. Nc3 {[%emt 0:10:19]} Be7 {[%emt 0:03:02]} 9. Be3 {[%emt 0:07:04]} O-O {[%emt 0:02:05]} 10. Be2 {[%emt 0:12:11]} Be6 {[%emt 0:03:54]} 11. O-O {[%emt 0:01:31]} f6 {[%emt 0:07:59]} 12. exf6 {[%emt 0:20:45]} Bxf6 {[%emt 0:00:35]} 13. h3 {[%emt 0:10:21]} Qe7 {[%emt 0:12:51]} 14. Rac1 {[%emt 0:02:10]} Rad8 {[%emt 0:06:37]} 15. Rfe1 {[%emt 0:01:21]} Na5 {[%emt 0:04:16]} 16. Qc2 {[%emt 0:01:00]} Nac4 {[%emt 0:00:18]} 17. Bf4 {[%emt 0:03:37]} Qd7 {[%emt 0:03:54]} 18. Bd3 {[%emt 0:01:33]} g6 {[%emt 0:03:02]} 19. Bh6 {[%emt 0:11:57]} Bg7 {[%emt 0:04:29]} 20. Bxg7 {[%emt 0:01:53]} Kxg7 {[%emt 0:00:05]} 21. Ng5 {[%emt 0:00:21]} Bg8 {[%emt 0:08:06]} 22. b3 {[%emt 0:01:41]} Nd6 {[%emt 0:00:50]} 23. Re5 {[%emt 0:00:21]} c6 {[%emt 0:03:01]} 24. Rce1 {[%emt 0:00:21]} Nbc8 {[%emt 0:00:04]} 25. Qe2 {[%emt 0:01:28]} Rde8 {[%emt 0:06:21]} 26. h4 {[%emt 0:00:25]} h6 {[%emt 0:01:15]} 27. Nh3 {[%emt 0:01:37]} Qf7 {[%emt 0:02:37]} 28. h5 {[%emt 0:01:22]} gxh5 {[%emt 0:01:11]} 29. g3 {[%emt 0:00:49]} Bh7 {[%emt 0:02:08]} 30. Nf4 {[%emt 0:01:23]} h4 {[%emt 0:01:15]} 31. Qg4+ {[%emt 0:00:24]} Kh8 {[%emt 0:00:28]} 32. Bxh7 {[%emt 0:02:18]} Kxh7 {[%emt 0:00:33]} 33. Qxh4 {[%emt 0:01:17]} Nf5 {[%emt 0:01:19]} 34. Qg4 {[%emt 0:00:40]} Ncd6 {[%emt 0:00:18]} 35. Qd1 {[%emt 0:00:23]} Rg8 {[%emt 0:01:33]} 36. Qd3 {[%emt 0:00:22]} Kh8 {[%emt 0:01:51]} 37. Re6 {[%emt 0:01:09]} Rxe6 {[%emt 0:01:00]} 38. Rxe6 {[%emt 0:00:20]} Re8 {[%emt 0:00:53]} 39. Re5 {[%emt 0:02:33]} Kg7 {[%emt 0:08:59]} 40. g4 {[%emt 0:00:30]} Nh4 {[%emt 0:00:30]} 41. Nh5+ Kh8 {[%emt 0:30:30]} 42. Nf4 {[%emt 0:01:15]} Nhf5 1/2-1/2

[Event "94th FRA-ch Veterans 2019"]
[Site "Chartres"]
[Date "2019.08.25"]
[Round "9.3"]
[White "Ricter, Jean-Paul"]
[Black "Goldenberg, Richard"]
[Result "1/2-1/2"]
[ECO "A43"]
[WhiteElo "2029"]
[BlackElo "2219"]
[Annotator "NA"]
[PlyCount "62"]
[EventDate "2019.08.17"]
[EventType "swiss"]
[EventCountry "FRA"]
[SourceTitle "playchess.com"]
[Source "ChessBase"]
[SourceQuality "1"]
[TimeControl "40/5400+30:1800+30"]

1. e4 {[%emt 0:00:00]} g6 {[%emt 0:00:32]} 2. d4 {[%emt 0:00:06]} Bg7 {[%emt 0:00:01]} 3. Nc3 {[%emt 0:00:22]} c5 {[%emt 0:01:44]} 4. d5 {[%emt 0:07:11]} d6 {[%emt 0:01:27]} 5. Nf3 {[%emt 0:01:38]} Nf6 {[%emt 0:00:29]} 6. Be2 {[%emt 0:01:02]} O-O {[%emt 0:00:20]} 7. O-O {[%emt 0:00:45]} Na6 {[%emt 0:00:43]} 8. Be3 {[%emt 0:10:13]} Nc7 {[%emt 0:00:54]} 9. a4 {[%emt 0:02:46]} Rb8 {[%emt 0:04:43]} 10. Nd2 {[%emt 0:08:02]} b6 {[%emt 0:06:30]} 11. Nc4 a6 {[%emt 0:00:30]} 12. f4 b5 {[%emt 0:00:30]} 13. axb5 Nxb5 {[%emt 0:00:30]} 14. Nxb5 axb5 {[%emt 0:00:30]} 15. Na5 Nxe4 {[%emt 0:00:30]} 16. Nc6 Qc7 {[%emt 0:00:30]} 17. Nxb8 Qxb8 {[%emt 0:00:30]} 18. c3 f5 {[%emt 0:00:30]} 19. Qb3 Bd7 {[%emt 0:00:30]} 20. Ra5 b4 {[%emt 0:00:30]} 21. cxb4 Qxb4 {[%emt 0:00:30]} 22. Qxb4 cxb4 {[%emt 0:00:30]} 23. Bb5 Bc8 {[%emt 0:00:30]} 24. Rb1 Bb7 {[%emt 0:00:30]} 25. Bd7 Nc5 {[%emt 0:00:30]} 26. Bxc5 dxc5 {[%emt 0:00:30]} 27. Be6+ Kh8 {[%emt 0:00:30]} 28. b3 Rd8 {[%emt 0:00:30]} 29. Ra7 Bd4+ {[%emt 0:00:30]} 30. Kf1 Rb8 {[%emt 0:00:30]} 31. Rd1 Kg7 {[%emt 0:00:30]} 1/2-1/2

[Event "94th FRA-ch Veterans 2019"]
[Site "Chartres"]
[Date "2019.08.25"]
[Round "9.4"]
[White "Ribaud-Chevrey, Philippe"]
[Black "Large, Laurent"]
[Result "0-1"]
[ECO "D34"]
[WhiteElo "2038"]
[BlackElo "2183"]
[Annotator "ChessBase"]
[PlyCount "66"]
[EventDate "2019.08.17"]
[EventType "swiss"]
[EventCountry "FRA"]
[SourceTitle "playchess.com"]
[Source "ChessBase"]
[SourceQuality "1"]
[TimeControl "40/5400+30:1800+30"]

1. d4 {[%emt 0:01:50]} d5 {[%emt 0:00:00]} 2. Nf3 {[%emt 0:00:12]} e6 {[%emt 0:00:28]} 3. c4 {[%emt 0:00:30]} c5 {[%emt 0:00:56]} 4. cxd5 {[%emt 0:00:35]} exd5 {[%emt 0:00:07]} 5. Nc3 {[%emt 0:00:10]} Nc6 {[%emt 0:00:23]} 6. g3 {[%emt 0:00:52]} Nf6 {[%emt 0:00:24]} 7. Bg2 {[%emt 0:00:09]} Be7 {[%emt 0:00:25]} 8. O-O {[%emt 0:00:21]} O-O {[%emt 0:00:11]} 9. Bg5 {[%emt 0:00:39]} c4 {[%emt 0:00:44]} 10. Ne5 {[%emt 0:07:33]} Be6 {[%emt 0:00:59]} 11. Nxc4 {[%emt 0:10:47]} dxc4 {[%emt 0:15:55]} 12. Bxf6 {[%emt 0:00:24]} Bxf6 {[%emt 0:03:42]} 13. d5 {[%emt 0:00:05]} Bxd5 {[%emt 0:02:04]} 14. Bxd5 {[%emt 0:03:00]} Qb6 {[%emt 0:04:53]} 15. Bxc6 {[%emt 0:07:18]} Qxc6 {[%emt 0:05:30]} 16. Qc2 {[%emt 0:01:11]} Rfe8 {[%emt 0:02:28]} 17. Rad1 {[%emt 0:01:09]} Bxc3 {[%emt 0:09:18]} 18. bxc3 {[%emt 0:00:27]} Qe6 {[%emt 0:02:18]} 19. Rfe1 {[%emt 0:00:59]} h5 {[%emt 0:02:17]} 20. Rd4 {[%emt 0:01:59]} Rad8 {[%emt 0:02:07]} 21. Qd2 {[%emt 0:11:00]} Qf6 {[%emt 0:04:06]} 22. e3 {[%emt 0:12:04]} h4 {[%emt 0:03:40]} 23. Kg2 {[%emt 0:13:48]} b5 {[%emt 0:08:37]} 24. f3 {[%emt 0:04:56]} a5 {[%emt 0:09:11]} 25. Kf2 {[%emt 0:03:08]} Rxd4 {[%emt 0:08:49]} 26. cxd4 {[%emt 0:10:29]} b4 {[%emt 0:00:32]} 27. e4 {[%emt 0:00:19]} c3 {[%emt 0:00:25]} 28. Qd3 {[%emt 0:00:36]} Qe6 {[%emt 0:00:58]} 29. Re2 {[%emt 0:02:16]} Qh3 {[%emt 0:00:37]} 30. g4 {[%emt 0:01:51]} Qxh2+ {[%emt 0:00:21]} 31. Ke3 {[%emt 0:00:21]} Qg1+ {[%emt 0:01:27]} 32. Kf4 {[%emt 0:00:38]} h3 {[%emt 0:02:54]} 33. Qb5 {[%emt 0:00:19]} Rd8 {[%emt 0:03:00]} 0-1